fUST/lending_fUST_20240824
["ID","MTS","AMOUNT","RATE_DAILY","PERIOD"]
[335692950,1724436069207,899.12102389,0.00013971,2]
[335692951,1724436070669,194.87445923,0.00013971,2]
[335692952,1724436072225,180.86285832,0.00013971,2]
[335692953,1724436072466,1308.44770761,0.00013971,2]
[335692954,1724436073562,569.78751732,0.00013971,2]
[335692955,1724436077346,192.63176969,0.00013971,2]
[335692957,1724436077831,210.32349268,0.00013971,2]
[335692958,1724436078653,40803.05004405,0.00013971,2]
[335692960,1724436082616,24900.0,0.00013633,2]
[335692961,1724436088672,155.35591657,0.00013971,2]
[335692962,1724436089880,2143.62270035,0.00013971,2]
[335692963,1724436091003,544.22652236,0.00013971,2]
[335692964,1724436091861,154.72922386,0.00013971,2]
[335692965,1724436092116,190.14748204,0.00013971,2]
[335692966,1724436092316,154.72922386,0.00013971,2]
[335692967,1724436092952,3093.89381195,0.00013971,2]
[335692968,1724436094026,155.10351085,0.00013971,2]
[335692969,1724436101218,776.60185887,0.00013971,2]
[335692970,1724436101772,154.74467129,0.00013971,2]
[335692971,1724436103284,154.93215599,0.00013971,2]
[335692972,1724436103455,535.01392671,0.00013971,2]
[335692973,1724436104176,308.32105333,0.00013971,2]
[335692974,1724436105812,154.93369694,0.00013971,2]
[335692975,1724436106152,154.7767652,0.00013971,2]
[335692976,1724436107342,15423.4531902,0.00013699,2]
[335692977,1724436107737,584.36584237,0.00013933,2]
[335692978,1724436107906,160.49093254,0.00013971,2]
[335692979,1724436111765,1195.12113032,0.00013971,2]
[335692980,1724436115306,520.80380986,0.00013971,2]
[335692981,1724436125426,8096.95105962,0.00013971,2]
[335692982,1724436128290,197.00259492,0.00013971,2]
[335692984,1724436130499,188.56371582,0.00013971,2]
[335692985,1724436134484,196.6746805,0.00013971,2]
[335692986,1724436136572,1309.44591287,0.00013971,2]
[335692987,1724436136950,273.37336231,0.00014,2]
[335692989,1724436144817,273.37336231,0.00014,2]
[335692990,1724436148814,448.15374583,0.00013971,2]
[335692992,1724436159241,413.74889628,0.00013971,2]
[335692995,1724436160100,273.37336231,0.00014,2]
[335692997,1724436162587,665.72637695,0.00013971,2]
[335693001,1724436173849,649.01057389,0.00013971,2]
[335693002,1724436174666,342.7929108,0.00013971,2]
[335693003,1724436176718,273.37336231,0.00014,2]
[335693005,1724436180984,154.72922386,0.00013971,2]
[335693006,1724436183611,174.90537191,0.00013971,2]
[335693007,1724436184053,811.1651197,0.00013971,2]
[335693008,1724436185204,210.35988185,0.00013971,2]
[335693009,1724436185763,199.18376074,0.00013971,2]
[335693010,1724436186289,493.52644239,0.00013971,2]
[335693011,1724436187382,154.72922386,0.00013971,2]
[335693012,1724436188436,9663.17336824,0.00013971,2]
[335693013,1724436189542,934.16422127,0.00013971,2]
[335693014,1724436191818,155.74950473,0.00013971,2]
[335693015,1724436192837,184.61601164,0.00013971,2]
[335693016,1724436194014,409.75022329,0.00013971,2]
[335693017,1724436194849,404.59278011,0.00013971,2]
[335693018,1724436195840,602.12270351,0.00013971,2]
[335693019,1724436195922,154.72922386,0.00013971,2]
[335693021,1724436196303,811.71027722,0.00013971,2]
[335693022,1724436196648,862.83835129,0.00013971,2]
[335693023,1724436198870,817.86473213,0.00013971,2]
[335693025,1724436201198,2713.66408099,0.00013971,2]
[335693026,1724436201339,154.72922386,0.00013971,2]
[335693029,1724436206057,154.79103211,0.00013971,2]
[335693030,1724436207385,154.72922386,0.00013971,2]
[335693032,1724436216822,5593.08482453,0.00013971,2]
[335693033,1724436217730,156.88380059,0.00013971,2]
[335693034,1724436220694,301.66413705,0.00013971,2]
[335693035,1724436222472,155.6116134,0.00013971,2]
[335693036,1724436223087,991.61536946,0.00013971,2]
[335693037,1724436225004,154.89903915,0.00013971,2]
[335693038,1724436225716,157.0643219,0.00013971,2]
[335693039,1724436228146,288.40254199,0.00013971,2]
[335693040,1724436229914,1022.88139081,0.00013971,2]
[335693041,1724436230080,154.74379546,0.00013971,2]
[335693043,1724436236316,260.38030896,0.00013971,2]
[335693044,1724436237165,305.07401593,0.00013971,2]
[335693045,1724436237197,864.82563523,0.00013933,2]
[335693046,1724436237229,197.33180704,0.00013971,2]
[335693047,1724436239288,320.27103328,0.00013971,2]
[335693048,1724436239454,307.65893703,0.00013971,2]
[335693049,1724436240420,495.34936838,0.00013971,2]
[335693050,1724436244376,154.88229937,0.00013971,2]
[335693052,1724436245309,521.54236624,0.00013971,2]
[335693054,1724436249621,1169.027583,0.00013971,2]
[335693055,1724436250766,154.74467129,0.00013971,2]
[335693057,1724436253811,2283.38976069,0.00013971,3]
[335693058,1724436254542,780.35335208,0.00013971,2]
[335693059,1724436257585,729.07882833,0.00013971,2]
[335693060,1724436264703,194.82337617,0.00013971,2]
[335693064,1724436269421,154.83158483,0.00013971,2]
[335693065,1724436270001,544.22652236,0.00013971,2]
[335693066,1724436274351,180.86285832,0.00013971,2]
[335693067,1724436277073,2143.62270035,0.00013971,2]
[335693068,1724436277235,898.82720151,0.00013971,2]
[335693069,1724436277812,154.72922386,0.00013971,2]
[335693070,1724436278632,190.07446844,0.00013971,2]
[335693073,1724436287139,230.69175979,0.00013971,2]
[335693075,1724436288925,155.80478878,0.00013971,2]
[335693076,1724436292373,154.79101976,0.00013971,2]
[335693077,1724436293331,154.86916128,0.00013971,2]
[335693078,1724436293366,426.65024112,0.00013971,2]
[335693079,1724436295358,304.54156935,0.00013971,2]
[335693080,1724436298840,250.0,0.00013899,2]
[335693081,1724436299095,250.0,0.00013937,2]
[335693082,1724436299318,250.0,0.00013975,2]
[335693083,1724436303401,569.78751732,0.00013971,2]
[335693084,1724436307090,2143.62270035,0.00013971,2]
[335693086,1724436308762,224.82906459,0.00013971,2]
[335693088,1724436331057,776.60185887,0.00013971,2]
[335693092,1724436340955,3091.42768639,0.00013971,2]
[335693094,1724436348118,2985.684503,0.00013699,2]
[335693099,1724436381835,493.47055315,0.00013971,2]
[335693100,1724436382565,932.03745378,0.00013971,2]
[335693101,1724436389670,862.83835129,0.00013971,2]
[335693102,1724436390232,817.86473213,0.00013971,2]
[335693108,1724436396374,158.66615763,0.00013971,2]
[335693109,1724436405369,265.93412202,0.00013971,2]
[335693110,1724436406126,154.91464861,0.00013971,2]
[335693111,1724436406922,155.25350552,0.00013971,2]
[335693112,1724436408269,237.85116811,0.00013971,2]
[335693113,1724436408346,462.45913726,0.00013971,2]
[335693114,1724436411278,-163.84929204,0.00014014,2]
[335693115,1724436414393,154.72922386,0.00013971,2]
[335693116,1724436431211,213.92669396,0.00013971,2]
[335693156,1724436537149,273.37336231,0.0001211,2]
[335693169,1724436579379,158.68405217,0.0001211,2]
[335693178,1724436628700,2504.0,0.00027,120]
[335693271,1724436635797,-167.2054304,0.00013549,2]
[335693272,1724436635807,-306.62871987,0.00013599,2]
[335693273,1724436635830,-2407.03536112,0.00013599,2]
[335693274,1724436635840,-301.66413705,0.00013688,2]
[335693275,1724436635850,-729.07882833,0.00013697,2]
[335693276,1724436635860,-1906.03026955,0.00013697,2]
[335693277,1724436635870,-300.0,0.00013697,2]
[335693278,1724436635882,-300.0,0.00013697,2]
[335693279,1724436635891,-779.45405942,0.00013698,2]
[335693280,1724436635901,-230.47913314,0.00013698,2]
[335693281,1724436635911,-521.35834296,0.00013698,2]
[335693282,1724436635920,-270.80779365,0.00013698,2]
[335693283,1724436635930,-201.33744455,0.00013698,2]
[335693284,1724436635940,-3000.0,0.00013699,2]
[335693285,1724436635949,-620.4390966,0.00013792,2]
[335693286,1724436635958,-154.72922386,0.00013971,2]
[335693287,1724436635968,-154.72922386,0.00013971,2]
[335693288,1724436635978,-374.404804,0.00013971,2]
[335693305,1724436638839,-544.22652236,0.00013697,2]
[335693306,1724436638849,-488.43354729,0.00013971,2]
[335693307,1724436638858,-3165.32484176,0.00013971,2]
[335693308,1724436638867,-493.25215365,0.00013971,2]
[335693309,1724436638877,-86.15070796,0.00014014,2]
[335693310,1724436638887,-154.72922386,0.0001404,2]
[335693311,1724436638896,-250.0,0.00014052,2]
[335693312,1724436638905,-250.0,0.0001409,2]
[335693313,1724436638914,-250.0,0.00014128,2]
[335693314,1724436638923,-250.0,0.00014166,2]
[335693315,1724436638933,-250.0,0.00014204,2]
[335693316,1724436638942,-250.0,0.00014242,2]
[335693317,1724436638951,-2166.86788154,0.00014245,2]
[335693318,1724436638962,-934.07929589,0.00014245,2]
[335693319,1724436638971,-293.26617941,0.00014245,2]
[335693320,1724436638981,-495.34936838,0.00014245,2]
[335693321,1724436638990,-158.15745652,0.00014245,2]
[335693322,1724436639000,-1766.94298382,0.00014245,2]
[335693323,1724436639010,-346.64449854,0.00014245,2]
[335693324,1724436639020,-193.425773,0.00014247,2]
[335693325,1724436639030,-554.393713,0.00014247,2]
[335693326,1724436639040,-250.0,0.0001428,2]
[335693327,1724436639048,-250.0,0.00014318,2]
[335693328,1724436639057,-250.0,0.00014357,2]
[335693329,1724436639067,-250.0,0.00014395,2]
[335693330,1724436639076,-250.0,0.00014433,2]
[335693331,1724436639085,-250.0,0.00014471,2]
[335693332,1724436639094,-250.0,0.00014509,2]
[335693333,1724436639103,-1500.0,0.00014519,2]
[335693334,1724436639112,-250.0,0.00014547,2]
[335693335,1724436639121,-250.0,0.00014585,2]
[335693336,1724436639132,-250.0,0.00014623,2]
[335693337,1724436639141,-158.68405217,0.00014679,2]
[335693338,1724436639150,-188.08712453,0.000149,2]
[335693339,1724436639160,-188.08712453,0.000149,2]
[335693340,1724436639170,-821.23203336,0.00015,2]
[335693341,1724436639180,-420.0,0.0001501,2]
[335693342,1724436639190,-420.0,0.00015067,2]
[335693343,1724436639199,-150.112233,0.000155,2]
[335693344,1724436639208,-11332.43128606,0.00015501,2]
[335693345,1724436639217,-500.0,0.0001552,2]
[335693346,1724436639226,-500.0,0.0001552,2]
[335693347,1724436639235,-500.0,0.0001552,2]
[335693348,1724436639245,-500.0,0.0001552,2]
[335693349,1724436639256,-500.0,0.0001552,2]
[335693350,1724436639267,-500.0,0.0001552,2]
[335693351,1724436639277,-500.0,0.0001552,2]
[335693352,1724436639287,-291.90426165,0.0001552,2]
[335693353,1724436639299,-500.0,0.0001552,2]
[335693354,1724436639309,-620.0,0.0001552,2]
[335693355,1724436639319,-500.0,0.0001552,2]
[335693356,1724436639329,-500.0,0.0001552,2]
[335693357,1724436639339,-500.0,0.0001552,2]
[335693358,1724436639349,-500.0,0.0001552,2]
[335693359,1724436639359,-500.0,0.0001552,2]
[335693360,1724436639368,-500.0,0.0001552,2]
[335693361,1724436639380,-500.0,0.0001552,2]
[335693362,1724436639391,-500.0,0.0001552,2]
[335693363,1724436639401,-500.0,0.0001552,2]
[335693364,1724436639411,-500.0,0.0001552,2]
[335693365,1724436639421,-500.0,0.0001552,2]
[335693366,1724436639431,-500.0,0.0001552,2]
[335693367,1724436639440,-500.0,0.0001552,2]
[335693368,1724436639450,-500.0,0.0001552,2]
[335693369,1724436639459,-500.0,0.0001552,2]
[335693370,1724436639469,-500.0,0.0001552,2]
[335693371,1724436639478,-500.0,0.0001552,2]
[335693372,1724436639487,-500.0,0.0001552,2]
[335693373,1724436639496,-500.0,0.0001552,2]
[335693374,1724436639505,-500.0,0.0001552,2]
[335693375,1724436639515,-500.0,0.0001552,2]
[335693376,1724436639525,-500.0,0.0001552,2]
[335693377,1724436639535,-500.0,0.0001552,2]
[335693378,1724436639544,-500.0,0.0001552,2]
[335693379,1724436639554,-500.0,0.0001552,2]
[335693380,1724436639563,-500.0,0.0001552,2]
[335693381,1724436639576,-219.387177,0.0001552,2]
[335693382,1724436639590,-500.0,0.0001552,2]
[335693383,1724436639599,-500.0,0.0001552,2]
[335693384,1724436639609,-500.0,0.0001552,2]
[335693385,1724436639620,-185.62815877,0.0001552,2]
[335693386,1724436639631,-500.0,0.0001552,2]
[335693387,1724436639642,-500.0,0.0001552,2]
[335693388,1724436639653,-500.0,0.0001552,2]
[335693389,1724436639665,-500.0,0.0001552,2]
[335693390,1724436639675,-500.0,0.0001552,2]
[335693391,1724436639687,-500.0,0.0001552,2]
[335693392,1724436639698,-51764.8177732,0.00015522,2]
[335693393,1724436639708,-998.20323418,0.00015531,2]
[335693394,1724436639718,-500.0,0.00015573,2]
[335693395,1724436639728,-500.0,0.00015573,2]
[335693396,1724436639737,-500.0,0.00015573,2]
[335693397,1724436639746,-150.112233,0.000157,2]
[335693398,1724436639756,-500.0,0.000157,2]
[335693399,1724436639766,-11332.43128603,0.00015973,2]
[335693400,1724436639778,-150.112233,0.00016,2]
[335693401,1724436639789,-1000.0,0.00016121,2]
[335693402,1724436639798,-1000.0,0.00016121,2]
[335693403,1724436639807,-1000.0,0.00016121,2]
[335693406,1724436639817,-150.112233,0.000162,2]
[335693407,1724436639826,-1000.0,0.00016248,2]
[335693409,1724436639836,-201.30493392,0.00016341,2]
[335693411,1724436639845,-1000.0,0.00016438,2]
[335693414,1724436639855,-1000.0,0.00016438,2]
[335693416,1724436639864,-1000.0,0.00016438,2]
[335693419,1724436639874,-500.0,0.00016438,2]
[335693421,1724436639886,-11332.43128603,0.00016446,2]
[335693422,1724436639895,-587.0,0.0001645,2]
[335693423,1724436639905,-1000.0,0.000165,2]
[335693424,1724436639915,-150.112233,0.000165,2]
[335693425,1724436639924,-154.434659,0.00016522,2]
[335693426,1724436639933,-154.74467129,0.00016594,2]
[335693427,1724436639944,-150.112233,0.000167,2]
[335693428,1724436639953,-1000.0,0.00016717,2]
[335693429,1724436639964,-1000.0,0.00016717,2]
[335693430,1724436639973,-397.57546869,0.00016764,2]
[335693431,1724436639982,-51764.8177732,0.00016902,2]
[335693432,1724436639991,-157.82358488,0.00016909,2]
[335693433,1724436640001,-500.0,0.00016909,2]
[335693434,1724436640011,-457.31303388,0.00016909,2]
[335693435,1724436640021,-500.0,0.00016909,2]
[335693436,1724436640031,-500.0,0.00016909,2]
[335693437,1724436640040,-500.0,0.00016909,2]
[335693439,1724436640050,-464.51947987,0.00016909,2]
[335693441,1724436640060,-500.0,0.00016909,2]
[335693443,1724436640069,-500.0,0.00016909,2]
[335693445,1724436640079,-500.0,0.00016909,2]
[335693447,1724436640088,-500.0,0.00016909,2]
[335693449,1724436640099,-500.0,0.00016909,2]
[335693451,1724436640109,-157.63222,0.00016913,2]
[335693453,1724436640119,-366.005229,0.00016913,2]
[335693455,1724436640133,-407.680699,0.00016913,2]
[335693457,1724436640148,-220.870662,0.00016913,2]
[335693458,1724436640158,-449.50602,0.00016913,2]
[335693460,1724436640167,-475.014727,0.00016913,2]
[335693461,1724436640177,-168.423271,0.00016913,2]
[335693462,1724436640186,-481.197699,0.00016913,2]
[335693463,1724436640197,-506.788073,0.00016913,2]
[335693464,1724436640206,-205.762886,0.00016913,2]
[335693465,1724436640215,-397.814105,0.00016913,2]
[335693466,1724436640225,-168.865378,0.00016913,2]
[335693467,1724436640234,-407.680699,0.00016913,2]
[335693468,1724436640244,-428.971556,0.00016913,2]
[335693469,1724436640253,-188.313139,0.00016913,2]
[335693470,1724436640262,-11332.43128603,0.00016918,2]
[335693471,1724436640272,-847.6,0.0001692,2]
[335693472,1724436640282,-235.06019857,0.00016934,2]
[335693473,1724436640291,-1249.654826,0.00016934,2]
[335693474,1724436640300,-154.77557542,0.00017,2]
[335693475,1724436640310,-1000.0,0.00017,17]
[335693476,1724436640319,-1000.0,0.00017,5]
[335693477,1724436640328,-1000.0,0.00017,2]
[335693478,1724436640338,-150.112233,0.00017,2]
[335693479,1724436640347,-567.92592686,0.00017019,2]
[335693480,1724436640356,-1102.31593733,0.00017019,2]
[335693481,1724436640366,-1300.65919201,0.00017019,2]
[335693482,1724436640375,-847.6,0.0001704,2]
[335693483,1724436640392,-200.29199372,0.00017073,2]
[335693484,1724436640403,-500.0,0.00017073,2]
[335693485,1724436640414,-500.0,0.00017073,2]
[335693486,1724436640424,-500.0,0.00017073,2]
[335693487,1724436640435,-500.0,0.00017073,2]
[335693488,1724436640447,-500.0,0.00017073,2]
[335693489,1724436640458,-500.0,0.00017073,2]
[335693490,1724436640468,-504.70643128,0.00017073,2]
[335693491,1724436640477,-103529.635546,0.0001709,2]
[335693492,1724436640487,-150.112233,0.000171,2]
[335693493,1724436640497,-60461.0258102,0.000171,2]
[335693494,1724436640507,-366.005229,0.00017125,2]
[335693495,1724436640517,-407.680699,0.00017125,2]
[335693496,1724436640527,-220.870662,0.00017125,2]
[335693497,1724436640537,-449.50602,0.00017125,2]
[335693498,1724436640547,-475.014727,0.00017125,2]
[335693499,1724436640558,-481.197699,0.00017125,2]
[335693500,1724436640568,-506.788073,0.00017125,2]
[335693501,1724436640579,-397.814105,0.00017125,2]
[335693503,1724436640592,-407.680699,0.00017125,2]
[335693505,1724436640601,-428.971556,0.00017125,2]
[335693506,1724436640610,-21975.11489765,0.00017137,9]
[335693508,1724436640620,-51764.8177732,0.00017137,2]
[335693510,1724436640631,-1500.0,0.00017146,2]
[335693512,1724436640641,-31725.79316384,0.00017147,2]
[335693515,1724436640650,-847.6,0.00017161,2]
[335693517,1724436640662,-150.112233,0.000172,2]
[335693520,1724436640672,-150.112233,0.000172,2]
[335693523,1724436640682,-173.50529,0.000172,2]
[335693525,1724436640692,-1000.0,0.00017236,2]
[335693527,1724436640702,-1000.0,0.00017236,2]
[335693529,1724436640711,-500.0,0.00017247,7]
[335693530,1724436640721,-500.0,0.00017247,7]
[335693531,1724436640730,-500.0,0.00017247,7]
[335693532,1724436640739,-500.0,0.00017247,7]
[335693533,1724436640749,-500.0,0.00017247,7]
[335693534,1724436640758,-500.0,0.00017247,7]
[335693535,1724436640768,-500.0,0.00017247,7]
[335693536,1724436640777,-500.0,0.00017247,7]
[335693537,1724436640786,-500.0,0.00017247,7]
[335693538,1724436640796,-500.0,0.00017247,7]
[335693539,1724436640805,-500.0,0.00017247,7]
[335693540,1724436640815,-500.0,0.00017247,7]
[335693541,1724436640825,-500.0,0.00017247,7]
[335693542,1724436640835,-500.0,0.00017247,7]
[335693543,1724436640846,-500.0,0.00017247,7]
[335693544,1724436640856,-500.0,0.00017247,7]
[335693545,1724436640865,-500.0,0.00017247,7]
[335693546,1724436640875,-500.0,0.00017247,7]
[335693547,1724436640888,-500.0,0.00017247,7]
[335693548,1724436640898,-500.0,0.00017247,7]
[335693549,1724436640907,-500.0,0.00017247,7]
[335693550,1724436640917,-500.0,0.00017247,7]
[335693551,1724436640926,-314.75,0.00017247,7]
[335693552,1724436640937,-500.0,0.00017247,7]
[335693553,1724436640946,-521.26,0.00017247,7]
[335693554,1724436640956,-500.0,0.00017247,7]
[335693555,1724436640967,-500.0,0.00017247,7]
[335693556,1724436640976,-500.0,0.00017247,7]
[335693557,1724436640986,-500.0,0.00017247,7]
[335693558,1724436640996,-500.0,0.00017247,7]
[335693559,1724436641005,-500.0,0.00017247,7]
[335693560,1724436641015,-500.0,0.00017247,7]
[335693561,1724436641024,-500.0,0.00017247,7]
[335693562,1724436641033,-500.0,0.00017247,7]
[335693563,1724436641046,-500.0,0.00017247,7]
[335693564,1724436641056,-500.0,0.00017247,7]
[335693565,1724436641065,-500.0,0.00017247,7]
[335693566,1724436641075,-500.0,0.00017247,7]
[335693567,1724436641084,-500.0,0.00017247,7]
[335693568,1724436641094,-500.0,0.00017247,7]
[335693569,1724436641103,-500.0,0.00017247,7]
[335693570,1724436641113,-500.0,0.00017247,7]
[335693571,1724436641122,-500.0,0.00017247,7]
[335693572,1724436641134,-500.0,0.00017247,7]
[335693573,1724436641143,-500.0,0.00017247,7]
[335693574,1724436641153,-500.0,0.00017247,7]
[335693575,1724436641162,-500.0,0.00017247,7]
[335693576,1724436641173,-500.0,0.00017247,7]
[335693577,1724436641182,-500.0,0.00017247,7]
[335693578,1724436641191,-630.51,0.00017247,7]
[335693579,1724436641201,-304.41,0.00017247,7]
[335693580,1724436641210,-847.6,0.00017282,2]
[335693581,1724436641219,-150.112233,0.000173,2]
[335693582,1724436641229,-588.88820081,0.00017336,2]
[335693583,1724436641239,-366.005229,0.00017336,2]
[335693584,1724436641249,-407.680699,0.00017336,2]
[335693585,1724436641258,-220.870662,0.00017336,2]
[335693586,1724436641268,-449.50602,0.00017336,2]
[335693587,1724436641279,-475.014727,0.00017336,2]
[335693588,1724436641289,-481.197699,0.00017336,2]
[335693589,1724436641298,-506.788073,0.00017336,2]
[335693590,1724436641308,-397.814105,0.00017336,2]
[335693591,1724436641319,-407.680699,0.00017336,2]
[335693592,1724436641329,-428.971556,0.00017336,2]
[335693593,1724436641338,-153.0,0.00017344,2]
[335693594,1724436641348,-153.0,0.00017344,2]
[335693595,1724436641357,-415.3643234,0.00017344,2]
[335693596,1724436641366,-153.0,0.00017344,2]
[335693597,1724436641376,-306.0,0.00017344,2]
[335693598,1724436641387,-51764.8177732,0.0001738,2]
[335693599,1724436641397,-131.9398587,0.0001739,2]
[335693600,1724436641986,-154.72922386,0.00013971,2]
[335693601,1724436641996,-3003.3535423,0.0001739,2]
[335693602,1724436642005,-11332.43128603,0.0001739,2]
[335693603,1724436642015,-150.112233,0.000174,2]
[335693604,1724436642024,-3000.0,0.000174,2]
[335693605,1724436642034,-150.112233,0.000174,2]
[335693606,1724436642044,-847.6,0.00017402,2]
[335693607,1724436642053,-3000.0,0.0001741,2]
[335693608,1724436642064,-3000.0,0.0001742,2]
[335693609,1724436642074,-3000.0,0.0001743,2]
[335693610,1724436642084,-3000.0,0.0001744,2]
[335693611,1724436642094,-3000.0,0.0001745,2]
[335693612,1724436642104,-3000.0,0.0001746,2]
[335693613,1724436642113,-3000.0,0.0001747,2]
[335693614,1724436642123,-3000.0,0.0001748,2]
[335693615,1724436642133,-2059.151458,0.00017488,2]
[335693616,1724436642143,-151.0,0.00017488,2]
[335693617,1724436642152,-2059.151458,0.00017488,2]
[335693618,1724436642161,-6407.204914,0.00017488,2]
[335693619,1724436642171,-6407.204914,0.00017488,2]
[335693620,1724436642181,-474.668343,0.00017488,2]
[335693621,1724436642190,-474.668343,0.00017488,2]
[335693622,1724436642199,-3715.657848,0.00017488,2]
[335693623,1724436642209,-3715.657848,0.00017488,2]
[335693624,1724436642219,-151.0,0.00017488,2]
[335693625,1724436642228,-793.468292,0.00017488,2]
[335693626,1724436642237,-793.468292,0.00017488,2]
[335693627,1724436642247,-1421.673066,0.00017488,2]
[335693628,1724436642256,-1421.673066,0.00017488,2]
[335693629,1724436642266,-3098.193945,0.00017488,2]
[335693630,1724436642275,-3098.193945,0.00017488,2]
[335693631,1724436642285,-508.90156613,0.00017488,2]
[335693641,1724436642822,-4424.94954231,0.00016437,2]
[335693642,1724436642832,-264.76319268,0.00016499,2]
[335693643,1724436642841,-1337.43595787,0.00017488,2]
[335693644,1724436642851,-1846.337524,0.00017488,2]
[335693645,1724436642860,-151.0,0.00017488,2]
[335693647,1724436642870,-151.0,0.00017488,2]
[335693649,1724436642879,-151.0,0.00017488,2]
[335693650,1724436642889,-151.0,0.00017488,2]
[335693652,1724436642898,-151.0,0.00017488,2]
[335693653,1724436642908,-4720.771761,0.00017488,2]
[335693654,1724436642917,-4720.771761,0.00017488,2]
[335693655,1724436642926,-1645.13719,0.00017488,2]
[335693656,1724436642936,-1645.13719,0.00017488,2]
[335693657,1724436642946,-2679.369334,0.00017488,2]
[335693658,1724436642956,-2679.369334,0.00017488,2]
[335693659,1724436642965,-3000.0,0.0001749,2]
[335693660,1724436642974,-151.0,0.0001749,2]
[335693661,1724436642984,-206676.42838547,0.00017498,2]
[335693662,1724436642994,-151.0,0.00017498,2]
[335693663,1724436643003,-151.0,0.00017498,2]
[335693665,1724436643012,-297.339089,0.00017498,2]
[335693667,1724436643022,-297.339089,0.00017498,2]
[335693668,1724436643031,-151.0,0.00017498,2]
[335693669,1724436643040,-663.803367,0.00017498,2]
[335693670,1724436643050,-163.69781,0.00017498,2]
[335693671,1724436643059,-663.803367,0.00017498,2]
[335693672,1724436643068,-1161.458496,0.00017498,2]
[335693673,1724436643077,-190.842719,0.00017498,2]
[335693674,1724436643087,-1161.458496,0.00017498,2]
[335693675,1724436643097,-201.914037,0.00017498,2]
[335693676,1724436643106,-201.914037,0.00017498,2]
[335693677,1724436643116,-1424.111318,0.00017498,2]
[335693678,1724436643125,-190.842719,0.00017498,2]
[335693679,1724436643135,-1424.111318,0.00017498,2]
[335693680,1724436643144,-2059.151458,0.00017498,2]
[335693681,1724436643154,-151.0,0.00017498,2]
[335693682,1724436643163,-2059.151458,0.00017498,2]
[335693683,1724436643172,-6407.204914,0.00017498,2]
[335693685,1724436643182,-6407.204914,0.00017498,2]
[335693686,1724436643191,-474.668343,0.00017498,2]
[335693687,1724436643200,-474.668343,0.00017498,2]
[335693688,1724436643209,-3715.657848,0.00017498,2]
[335693689,1724436643218,-3715.657848,0.00017498,2]
[335693690,1724436643228,-151.0,0.00017498,2]
[335693691,1724436643238,-3138.825722,0.00017498,2]
[335693692,1724436643247,-3138.825722,0.00017498,2]
[335693693,1724436643258,-151.0,0.00017498,2]
[335693694,1724436643268,-151.0,0.00017498,2]
[335693695,1724436643277,-151.0,0.00017498,2]
[335693696,1724436643286,-607.017954,0.00017498,2]
[335693697,1724436643296,-1268.00318,0.00017498,2]
[335693698,1724436643305,-607.017954,0.00017498,2]
[335693699,1724436643316,-1268.00318,0.00017498,2]
[335693700,1724436643326,-793.468292,0.00017498,2]
[335693701,1724436643335,-793.468292,0.00017498,2]
[335693702,1724436643344,-1754.974641,0.00017498,2]
[335693703,1724436643354,-1754.974641,0.00017498,2]
[335693704,1724436643362,-1421.673066,0.00017498,2]
[335693706,1724436643371,-1421.673066,0.00017498,2]
[335693707,1724436643383,-3098.193945,0.00017498,2]
[335693708,1724436643396,-3098.193945,0.00017498,2]
[335693710,1724436643405,-1846.337524,0.00017498,2]
[335693712,1724436643414,-1846.337524,0.00017498,2]